[Event "*** Titled Tuesday 3|2 Blitz"]
[Site "Chess.com"]
[Date "2016.05.03"]
[Round "5"]
[White "davidarenas1224"]
[Black "renanreis"]
[Result "1-0"]
[WhiteElo "2181"]
[BlackElo "2015"]
[TimeControl "180+2"]
[EndTime "18:02:15 PDT"]
[Termination "davidarenas1224 won by resignation"]

1. e4 {[%clk 0:03:01.9]} 1... c5 {[%clk 0:02:59.6]} 2. Nf3 {[%clk 0:03:02.8]}
2... d6 {[%clk 0:03:00.5]} 3. d4 {[%clk 0:03:04.5]} 3... cxd4 {[%clk 0:03:00.3]}
4. Nxd4 {[%clk 0:03:06.4]} 4... Nf6 {[%clk 0:03:01]} 5. Nc3 {[%clk 0:03:06.9]}
5... a6 {[%clk 0:03:01.8]} 6. Be2 {[%clk 0:03:07.3]} 6... e6 {[%clk 0:03:01.7]}
7. O-O {[%clk 0:03:07.6]} 7... Be7 {[%clk 0:03:01.5]} 8. f4 {[%clk 0:03:08.7]}
8... O-O {[%clk 0:03:02.6]} 9. Be3 {[%clk 0:03:09.5]} 9... Qc7 {[%clk
0:03:01.9]} 10. Qe1 {[%clk 0:03:06.7]} 10... Nc6 {[%clk 0:03:02]} 11. Kh1 {[%clk
0:03:04.9]} 11... Bd7 {[%clk 0:03:00.9]} 12. Qg3 {[%clk 0:03:05.3]} 12... b5
{[%clk 0:02:43.3]} 13. a3 {[%clk 0:03:04.9]} 13... Rac8 {[%clk 0:02:32.7]} 14.
Rad1 {[%clk 0:02:45.9]} 14... Rfd8 {[%clk 0:02:12.6]} 15. e5 {[%clk 0:02:12]}
15... dxe5 {[%clk 0:02:05.6]} 16. fxe5 {[%clk 0:02:13.9]} 16... Nxe5 {[%clk
0:01:33.2]} 17. Bf4 {[%clk 0:01:25.4]} 17... Bd6 {[%clk 0:01:20.5]} 18. Ndxb5
{[%clk 0:01:13.1]} 18... Bxb5 {[%clk 0:01:14.2]} 19. Nxb5 {[%clk 0:01:11.2]}
19... axb5 {[%clk 0:01:10.8]} 20. Rxd6 {[%clk 0:01:12.1]} 20... Ne4 {[%clk
0:00:12.9]} 21. Rxd8+ {[%clk 0:01:09.3]} 21... Rxd8 {[%clk 0:00:13.6]} 22. Qe3
{[%clk 0:01:05.6]} 22... f5 {[%clk 0:00:10.8]} 23. Bd3 {[%clk 0:01:04.1]} 23...
Ng4 {[%clk 0:00:08.7]} 24. Bxc7 {[%clk 0:01:04.3]} 24... Nxe3 {[%clk 0:00:09.5]}
25. Bxd8 {[%clk 0:01:05.5]} 25... Nxf1 {[%clk 0:00:10.1]} 26. Bxf1 {[%clk
0:01:07.4]} 26... Nd6 {[%clk 0:00:06.7]} 27. Bc7 {[%clk 0:01:06.5]} 27... Nc4
{[%clk 0:00:07.1]} 28. Bxc4 {[%clk 0:01:06.7]} 28... bxc4 {[%clk 0:00:09]} 29.
a4 {[%clk 0:01:07.7]} 29... Kf7 {[%clk 0:00:09.9]} 30. a5 {[%clk 0:01:09.1]}
30... Ke8 {[%clk 0:00:11.4]} 31. a6 {[%clk 0:01:10.7]} 31... Kd7 {[%clk
0:00:12.8]} 32. a7 {[%clk 0:01:12.2]} 32... Kxc7 {[%clk 0:00:13.7]} 33. a8=Q
{[%clk 0:01:13.7]} 33... c3 {[%clk 0:00:15]} 34. bxc3 {[%clk 0:01:13.3]} 1-0

[Event "*** Titled Tuesday 3|2 Blitz"]
[Site "Chess.com"]
[Date "2016.05.03"]
[Round "5"]
[White "oskariot"]
[Black "Quiet_Desperation"]
[Result "1-0"]
[WhiteElo "2421"]
[BlackElo "2270"]
[TimeControl "180+2"]
[EndTime "18:02:42 PDT"]
[Termination "oskariot won by resignation"]

1. e4 {[%clk 0:03:01.9]} 1... Nc6 {[%clk 0:02:59.4]} 2. Nf3 {[%clk 0:03:02.7]}
2... d6 {[%clk 0:03:00.8]} 3. d4 {[%clk 0:03:03.5]} 3... Nf6 {[%clk 0:03:02.1]}
4. Nc3 {[%clk 0:03:04.3]} 4... d5 {[%clk 0:03:03.5]} 5. e5 {[%clk 0:03:04.1]}
5... Ne4 {[%clk 0:03:04.7]} 6. Bd3 {[%clk 0:03:05.4]} 6... Nxc3 {[%clk 0:03:01]}
7. bxc3 {[%clk 0:03:07.3]} 7... Bg4 {[%clk 0:03:01.6]} 8. h3 {[%clk 0:03:08.5]}
8... Bh5 {[%clk 0:03:02.6]} 9. O-O {[%clk 0:03:08.9]} 9... e6 {[%clk 0:03:04]}
10. Rb1 {[%clk 0:03:07.7]} 10... Rb8 {[%clk 0:03:04.5]} 11. Be2 {[%clk
0:02:56.3]} 11... Be7 {[%clk 0:03:05.1]} 12. Ne1 {[%clk 0:02:56.7]} 12... Bxe2
{[%clk 0:03:01.3]} 13. Qxe2 {[%clk 0:02:58.6]} 13... O-O {[%clk 0:03:02.4]} 14.
f4 {[%clk 0:03:00]} 14... Qd7 {[%clk 0:03:02.4]} 15. Nd3 {[%clk 0:02:52]} 15...
Na5 {[%clk 0:02:48.8]} 16. g4 {[%clk 0:02:48]} 16... Nc4 {[%clk 0:02:49.8]} 17.
f5 {[%clk 0:02:47]} 17... exf5 {[%clk 0:02:45.2]} 18. gxf5 {[%clk 0:02:47.1]}
18... f6 {[%clk 0:02:38.4]} 19. e6 {[%clk 0:02:45.9]} 19... Qa4 {[%clk
0:02:37.2]} 20. Nf4 {[%clk 0:02:39.2]} 20... Nb6 {[%clk 0:02:21.7]} 21. Qh5
{[%clk 0:02:24.2]} 21... Qxc2 {[%clk 0:02:19.6]} 22. Ng6 {[%clk 0:02:06.4]}
22... Rfe8 {[%clk 0:01:59]} 23. Rf4 {[%clk 0:01:34.4]} 23... h6 {[%clk
0:01:43.5]} 24. Rf1 {[%clk 0:00:56.7]} 24... Qxc3 {[%clk 0:00:20.8]} 25. Bxh6
{[%clk 0:00:44.6]} 25... Qxd4+ {[%clk 0:00:20.6]} 26. Kh2 {[%clk 0:00:32.8]}
26... Bd6+ {[%clk 0:00:19.4]} 27. Bf4 {[%clk 0:00:22.7]} 27... Bxf4+ {[%clk
0:00:20.4]} 28. Rxf4 {[%clk 0:00:18.5]} 28... Qd2+ {[%clk 0:00:19.5]} 29. Kh1
{[%clk 0:00:15.7]} 29... Rxe6 {[%clk 0:00:19.8]} 30. fxe6 {[%clk 0:00:12.9]} 1-0

[Event "*** Titled Tuesday 3|2 Blitz"]
[Site "Chess.com"]
[Date "2016.05.03"]
[Round "5"]
[White "Elshan1985"]
[Black "pKiLz5Rn9b"]
[Result "0-1"]
[WhiteElo "2554"]
[BlackElo "2420"]
[TimeControl "180+2"]
[EndTime "18:02:57 PDT"]
[Termination "pKiLz5Rn9b won by resignation"]

1. d4 {[%clk 0:03:01.9]} 1... d6 {[%clk 0:03:00.4]} 2. Nf3 {[%clk 0:03:03]} 2...
g6 {[%clk 0:03:01.7]} 3. e4 {[%clk 0:03:03.2]} 3... Bg7 {[%clk 0:03:03.2]} 4.
Bd3 {[%clk 0:03:04.3]} 4... a6 {[%clk 0:03:04.6]} 5. O-O {[%clk 0:03:05.4]} 5...
b6 {[%clk 0:03:04.7]} 6. Re1 {[%clk 0:03:05.7]} 6... Bb7 {[%clk 0:03:05.7]} 7.
Nbd2 {[%clk 0:03:05.5]} 7... e6 {[%clk 0:03:06.8]} 8. c3 {[%clk 0:03:06.1]} 8...
Ne7 {[%clk 0:03:06.7]} 9. a4 {[%clk 0:03:07.2]} 9... h6 {[%clk 0:03:07.8]} 10.
a5 {[%clk 0:03:06.6]} 10... b5 {[%clk 0:03:05.4]} 11. e5 {[%clk 0:03:07.2]}
11... Nd7 {[%clk 0:03:04.9]} 12. Qe2 {[%clk 0:02:58.6]} 12... g5 {[%clk
0:03:04.1]} 13. Ne4 {[%clk 0:02:48.8]} 13... Bxe4 {[%clk 0:03:04.6]} 14. Bxe4
{[%clk 0:02:48.7]} 14... d5 {[%clk 0:03:06]} 15. Bc2 {[%clk 0:02:48.9]} 15... c5
{[%clk 0:03:05.1]} 16. dxc5 {[%clk 0:02:41.8]} 16... Nxc5 {[%clk 0:03:04.1]} 17.
Nd4 {[%clk 0:02:42.1]} 17... Qc7 {[%clk 0:03:03.6]} 18. f4 {[%clk 0:02:41.8]}
18... gxf4 {[%clk 0:02:45.6]} 19. Bxf4 {[%clk 0:02:42.7]} 19... O-O-O {[%clk
0:02:47.1]} 20. Rf1 {[%clk 0:02:35.6]} 20... Rdf8 {[%clk 0:02:41.8]} 21. Qh5
{[%clk 0:02:31.7]} 21... Ne4 {[%clk 0:02:37.9]} 22. Rae1 {[%clk 0:02:19.6]}
22... Ng6 {[%clk 0:02:33.9]} 23. Bxe4 {[%clk 0:02:15.7]} 23... dxe4 {[%clk
0:02:31.8]} 24. Rxe4 {[%clk 0:02:12.7]} 24... Nxf4 {[%clk 0:02:19.9]} 25. Rfxf4
{[%clk 0:02:09.4]} 25... Rhg8 {[%clk 0:02:19.5]} 26. Rf2 {[%clk 0:01:58.8]}
26... Qxa5 {[%clk 0:02:12.5]} 27. g3 {[%clk 0:01:52.1]} 27... Qc7 {[%clk
0:02:06.7]} 28. Nc2 {[%clk 0:01:17.7]} 28... Qb7 {[%clk 0:01:53.6]} 29. Rd4
{[%clk 0:01:06.8]} 29... Qc7 {[%clk 0:01:52.7]} 30. Re4 {[%clk 0:01:07.8]} 30...
Qb7 {[%clk 0:01:52.3]} 31. Qe2 {[%clk 0:01:07.7]} 31... Rd8 {[%clk 0:01:51.8]}
32. Nd4 {[%clk 0:01:08.8]} 32... Rd7 {[%clk 0:01:53]} 33. Ref4 {[%clk
0:01:06.2]} 33... Rgd8 {[%clk 0:01:53.6]} 34. Qh5 {[%clk 0:01:07]} 34... Qd5
{[%clk 0:01:42.5]} 35. Rxf7 {[%clk 0:01:06.9]} 35... Bxe5 {[%clk 0:01:43.4]} 36.
Rxd7 {[%clk 0:01:06.1]} 36... Rxd7 {[%clk 0:01:45.3]} 37. Qe8+ {[%clk
0:01:06.5]} 37... Kb7 {[%clk 0:01:44.6]} 38. Nxe6 {[%clk 0:00:57.9]} 38... Kb6
{[%clk 0:01:08.3]} 39. Nf8 {[%clk 0:00:52.8]} 39... Rd6 {[%clk 0:00:56.5]} 40.
Ng6 {[%clk 0:00:41]} 40... Re6 {[%clk 0:00:47.8]} 41. Qf7 {[%clk 0:00:37.3]}
41... Bd6 {[%clk 0:00:48.9]} 42. Nf4 {[%clk 0:00:34.6]} 42... Re1+ {[%clk
0:00:47.2]} 0-1

[Event "*** Titled Tuesday 3|2 Blitz"]
[Site "Chess.com"]
[Date "2016.05.03"]
[Round "5"]
[White "jposthuma"]
[Black "chess960now"]
[Result "1-0"]
[WhiteElo "2149"]
[BlackElo "2012"]
[TimeControl "180+2"]
[EndTime "18:03:25 PDT"]
[Termination "jposthuma won by resignation"]

1. d4 {[%clk 0:03:01.9]} 1... Nf6 {[%clk 0:03:00.1]} 2. c4 {[%clk 0:03:03.2]}
2... g6 {[%clk 0:02:58.6]} 3. Nc3 {[%clk 0:03:02.6]} 3... Bg7 {[%clk 0:02:59.2]}
4. e4 {[%clk 0:03:03.2]} 4... d6 {[%clk 0:02:59.5]} 5. f3 {[%clk 0:02:57.2]}
5... O-O {[%clk 0:02:57.9]} 6. Be3 {[%clk 0:02:55.2]} 6... c6 {[%clk 0:02:56]}
7. Bd3 {[%clk 0:02:54.4]} 7... a6 {[%clk 0:02:56.7]} 8. Nge2 {[%clk 0:02:55.2]}
8... b5 {[%clk 0:02:57.6]} 9. Qd2 {[%clk 0:02:47]} 9... Nbd7 {[%clk 0:02:27.5]}
10. Ng3 {[%clk 0:02:24.1]} 10... Bb7 {[%clk 0:02:23.8]} 11. O-O-O {[%clk
0:01:59.6]} 11... e5 {[%clk 0:01:45.6]} 12. d5 {[%clk 0:01:52.9]} 12... cxd5
{[%clk 0:01:40.8]} 13. cxd5 {[%clk 0:01:46.9]} 13... Nb6 {[%clk 0:01:25.2]} 14.
Kb1 {[%clk 0:01:35.6]} 14... Rc8 {[%clk 0:01:16.5]} 15. Bh6 {[%clk 0:01:31.9]}
15... Nc4 {[%clk 0:00:51.4]} 16. Bxc4 {[%clk 0:01:32.7]} 16... bxc4 {[%clk
0:00:51.3]} 17. h4 {[%clk 0:01:32.1]} 17... Qb6 {[%clk 0:00:46.2]} 18. Nf5
{[%clk 0:01:15.9]} 18... gxf5 {[%clk 0:00:38]} 19. Bxg7 {[%clk 0:01:14.4]} 19...
Kxg7 {[%clk 0:00:34.6]} 20. Qg5+ {[%clk 0:01:14.8]} 20... Kh8 {[%clk 0:00:34.4]}
21. Qxf6+ {[%clk 0:01:15.5]} 21... Kg8 {[%clk 0:00:35.5]} 22. h5 {[%clk
0:00:40.8]} 22... Qd8 {[%clk 0:00:29.6]} 23. Qxf5 {[%clk 0:00:39.9]} 23... f6
{[%clk 0:00:27.8]} 24. Rh3 {[%clk 0:00:33.5]} 24... Rb8 {[%clk 0:00:23.6]} 25.
Rg3+ {[%clk 0:00:26.4]} 25... Kh8 {[%clk 0:00:24.7]} 26. h6 {[%clk 0:00:14.3]}
26... Rf7 {[%clk 0:00:11.9]} 27. Rg7 {[%clk 0:00:10]} 27... Rxg7 {[%clk
0:00:10.9]} 28. hxg7+ {[%clk 0:00:11.9]} 28... Kxg7 {[%clk 0:00:11.6]} 29. Rh1
{[%clk 0:00:13.7]} 29... Qh8 {[%clk 0:00:11.5]} 30. g4 {[%clk 0:00:12]} 30...
Bc8 {[%clk 0:00:10]} 31. Qh5 {[%clk 0:00:13.1]} 31... Bd7 {[%clk 0:00:07.3]} 32.
g5 {[%clk 0:00:14.1]} 32... Kf8 {[%clk 0:00:06.9]} 33. gxf6 {[%clk 0:00:11.3]}
33... Qxf6 {[%clk 0:00:07.2]} 34. Qxh7 {[%clk 0:00:10.8]} 34... Qf7 {[%clk
0:00:06.3]} 35. Qh8+ {[%clk 0:00:10.6]} 35... Qg8 {[%clk 0:00:06.8]} 36. Qf6+
{[%clk 0:00:12]} 36... Ke8 {[%clk 0:00:06.2]} 37. Rh8 {[%clk 0:00:13.6]} 1-0

[Event "*** Titled Tuesday 3|2 Blitz"]
[Site "Chess.com"]
[Date "2016.05.03"]
[Round "5"]
[White "vinceyoung15"]
[Black "1random"]
[Result "1-0"]
[WhiteElo "2213"]
[BlackElo "2025"]
[TimeControl "180+2"]
[EndTime "18:03:53 PDT"]
[Termination "vinceyoung15 won by checkmate"]

1. e4 {[%clk 0:03:01.9]} 1... Nf6 {[%clk 0:02:57.3]} 2. e5 {[%clk 0:03:00.4]}
2... Nd5 {[%clk 0:02:54.4]} 3. d4 {[%clk 0:03:01.4]} 3... d6 {[%clk 0:02:52.4]}
4. c4 {[%clk 0:03:01.5]} 4... Nb6 {[%clk 0:02:53.4]} 5. Nf3 {[%clk 0:03:02]}
5... g6 {[%clk 0:02:53.1]} 6. Nc3 {[%clk 0:03:02.2]} 6... Bg7 {[%clk 0:02:47.9]}
7. exd6 {[%clk 0:03:03.3]} 7... cxd6 {[%clk 0:02:45]} 8. Be3 {[%clk 0:03:04.2]}
8... O-O {[%clk 0:02:45.8]} 9. Qd2 {[%clk 0:03:04.6]} 9... Bg4 {[%clk
0:02:41.8]} 10. Be2 {[%clk 0:02:58.1]} 10... d5 {[%clk 0:02:38]} 11. c5 {[%clk
0:02:55.6]} 11... Nc8 {[%clk 0:02:35.9]} 12. h3 {[%clk 0:02:56]} 12... Bxf3
{[%clk 0:02:36.6]} 13. Bxf3 {[%clk 0:02:56.3]} 13... e6 {[%clk 0:02:38.5]} 14.
h4 {[%clk 0:02:54.8]} 14... h5 {[%clk 0:02:37.4]} 15. g4 {[%clk 0:02:55.1]}
15... hxg4 {[%clk 0:02:37.9]} 16. Bxg4 {[%clk 0:02:56]} 16... f5 {[%clk
0:02:27.3]} 17. Bf3 {[%clk 0:02:53]} 17... Bf6 {[%clk 0:02:28.7]} 18. O-O-O
{[%clk 0:02:49.4]} 18... Kh7 {[%clk 0:02:24.3]} 19. Rdg1 {[%clk 0:02:47.2]}
19... Rg8 {[%clk 0:02:25.3]} 20. Bg5 {[%clk 0:02:42]} 20... Bxg5 {[%clk
0:02:22.5]} 21. Rxg5 {[%clk 0:02:42.1]} 21... Ne7 {[%clk 0:02:17.1]} 22. h5
{[%clk 0:02:43.1]} 22... Kg7 {[%clk 0:02:15.2]} 23. Qe3 {[%clk 0:02:36.3]} 23...
Nbc6 {[%clk 0:02:05.8]} 24. hxg6 {[%clk 0:02:14]} 24... Nxg6 {[%clk 0:01:59.4]}
25. Rhg1 {[%clk 0:02:11.8]} 25... Kf6 {[%clk 0:01:57.1]} 26. Bh5 {[%clk
0:02:02.3]} 26... Nce7 {[%clk 0:01:55.6]} 27. Re1 {[%clk 0:01:40.5]} 27... Qd7
{[%clk 0:01:50.3]} 28. Rg2 {[%clk 0:01:39]} 28... f4 {[%clk 0:01:40.1]} 29. Qh3
{[%clk 0:01:27.8]} 29... Nf5 {[%clk 0:01:37.8]} 30. Reg1 {[%clk 0:01:12.4]}
30... Nge7 {[%clk 0:01:27.4]} 31. Rxg8 {[%clk 0:01:08.5]} 31... Rxg8 {[%clk
0:01:21.7]} 32. Rxg8 {[%clk 0:01:05.1]} 32... Nxg8 {[%clk 0:01:23.6]} 33. Qg4
{[%clk 0:01:06.6]} 33... Qg7 {[%clk 0:01:21.8]} 34. Qxf4 {[%clk 0:01:02.3]}
34... Qg5 {[%clk 0:01:16.4]} 35. Qxg5+ {[%clk 0:00:52.2]} 35... Kxg5 {[%clk
0:01:18.3]} 36. Bf7 {[%clk 0:00:49]} 36... Nge7 {[%clk 0:00:56.7]} 37. Bxe6
{[%clk 0:00:49.5]} 37... Nxd4 {[%clk 0:00:58.2]} 38. Bxd5 {[%clk 0:00:39.8]}
38... Nec6 {[%clk 0:00:56.1]} 39. Kd2 {[%clk 0:00:37.2]} 39... Kf4 {[%clk
0:00:55.2]} 40. Ne2+ {[%clk 0:00:32.5]} 40... Nxe2 {[%clk 0:00:52.2]} 41. Kxe2
{[%clk 0:00:32.1]} 41... Nb4 {[%clk 0:00:53.2]} 42. Bg2 {[%clk 0:00:29.5]} 42...
Nxa2 {[%clk 0:00:53.2]} 43. Bxb7 {[%clk 0:00:30.1]} 43... Ke5 {[%clk 0:00:53.7]}
44. Kd3 {[%clk 0:00:28.8]} 44... Nc1+ {[%clk 0:00:52.3]} 45. Kc4 {[%clk
0:00:23.8]} 45... Ke6 {[%clk 0:00:53.3]} 46. f4 {[%clk 0:00:22.5]} 46... Ne2
{[%clk 0:00:53.8]} 47. Bd5+ {[%clk 0:00:22.3]} 47... Kf5 {[%clk 0:00:50.8]} 48.
c6 {[%clk 0:00:23]} 48... Nxf4 {[%clk 0:00:46.5]} 49. c7 {[%clk 0:00:23.6]}
49... a5 {[%clk 0:00:45.7]} 50. c8=Q+ {[%clk 0:00:23.8]} 50... Ke5 {[%clk
0:00:47.6]} 51. Qc7+ {[%clk 0:00:24.2]} 51... Kf5 {[%clk 0:00:48.6]} 52. Qxa5
{[%clk 0:00:24.4]} 52... Kg4 {[%clk 0:00:48.5]} 53. b4 {[%clk 0:00:24.1]} 53...
Kg3 {[%clk 0:00:49.9]} 54. Qc7 {[%clk 0:00:23.9]} 54... Kg4 {[%clk 0:00:50.1]}
55. Qxf4+ {[%clk 0:00:25.2]} 55... Kh3 {[%clk 0:00:50.1]} 56. Qg5 {[%clk
0:00:24.4]} 56... Kh2 {[%clk 0:00:50.8]} 57. Qg2# {[%clk 0:00:25.2]} 1-0

[Event "*** Titled Tuesday 3|2 Blitz"]
[Site "Chess.com"]
[Date "2016.05.03"]
[Round "5"]
[White "Boryboy"]
[Black "Zazuliak"]
[Result "1-0"]
[WhiteElo "2533"]
[BlackElo "2366"]
[TimeControl "180+2"]
[EndTime "18:04:00 PDT"]
[Termination "Boryboy won by resignation"]

1. d4 {[%clk 0:03:01.9]} 1... Nf6 {[%clk 0:02:59.5]} 2. Nf3 {[%clk 0:03:00.6]}
2... g6 {[%clk 0:03:00.5]} 3. g3 {[%clk 0:03:00.2]} 3... Bg7 {[%clk 0:03:01.6]}
4. Bg2 {[%clk 0:03:02.1]} 4... O-O {[%clk 0:03:02.8]} 5. O-O {[%clk 0:03:04]}
5... d6 {[%clk 0:03:04.1]} 6. a4 {[%clk 0:03:05.5]} 6... a5 {[%clk 0:03:01.1]}
7. b3 {[%clk 0:03:05.8]} 7... Nc6 {[%clk 0:02:58]} 8. Bb2 {[%clk 0:02:56.6]}
8... Bf5 {[%clk 0:02:58.3]} 9. Nbd2 {[%clk 0:02:56.1]} 9... Ne4 {[%clk
0:02:56.8]} 10. Nh4 {[%clk 0:02:52.5]} 10... Nxd2 {[%clk 0:02:55.1]} 11. Nxf5
{[%clk 0:02:49.2]} 11... gxf5 {[%clk 0:02:09.2]} 12. Qxd2 {[%clk 0:02:48.8]}
12... d5 {[%clk 0:02:02.2]} 13. e3 {[%clk 0:02:38.7]} 13... e6 {[%clk
0:02:01.6]} 14. c4 {[%clk 0:02:39.4]} 14... Ne7 {[%clk 0:01:55.6]} 15. cxd5
{[%clk 0:02:28.7]} 15... Nxd5 {[%clk 0:01:55.9]} 16. Rfc1 {[%clk 0:02:29.8]}
16... c6 {[%clk 0:01:56.5]} 17. Qe2 {[%clk 0:02:30.4]} 17... Qb6 {[%clk
0:01:50.2]} 18. Qc4 {[%clk 0:02:27.8]} 18... Rfd8 {[%clk 0:01:49.7]} 19. h3
{[%clk 0:02:18.8]} 19... Qb4 {[%clk 0:01:29.7]} 20. g4 {[%clk 0:02:14.2]} 20...
fxg4 {[%clk 0:01:30]} 21. hxg4 {[%clk 0:02:14.3]} 21... Bf6 {[%clk 0:01:24.3]}
22. Ba3 {[%clk 0:01:58.6]} 22... Qb6 {[%clk 0:01:14.5]} 23. Be4 {[%clk 0:01:39]}
23... Kg7 {[%clk 0:00:57]} 24. Kg2 {[%clk 0:01:32.7]} 24... h6 {[%clk
0:00:54.5]} 25. Rh1 {[%clk 0:01:27.4]} 25... Rh8 {[%clk 0:00:52.2]} 26. Rag1
{[%clk 0:01:21.7]} 26... Qa6 {[%clk 0:00:43]} 27. Qc2 {[%clk 0:01:09.7]} 27...
b5 {[%clk 0:00:35.9]} 28. Bc5 {[%clk 0:01:08.2]} 28... bxa4 {[%clk 0:00:35.7]}
29. bxa4 {[%clk 0:01:09]} 29... Rab8 {[%clk 0:00:37]} 30. Rb1 {[%clk 0:01:08.6]}
30... Nb4 {[%clk 0:00:31.1]} 31. Qd2 {[%clk 0:01:07.5]} 31... Nd5 {[%clk
0:00:29]} 32. Bd3 {[%clk 0:01:08.2]} 32... Qc8 {[%clk 0:00:28.4]} 33. Qxa5
{[%clk 0:01:09.1]} 33... Ra8 {[%clk 0:00:28.4]} 34. Qd2 {[%clk 0:01:04.9]} 34...
Rxa4 {[%clk 0:00:28.7]} 35. Rh3 {[%clk 0:00:59.4]} 35... Qd8 {[%clk 0:00:21.2]}
36. Rf3 {[%clk 0:00:57]} 36... Be7 {[%clk 0:00:21.4]} 37. Qc2 {[%clk 0:00:54.9]}
37... Ra8 {[%clk 0:00:20.6]} 38. Rb7 {[%clk 0:00:55.7]} 38... Re8 {[%clk
0:00:19.1]} 39. Be4 {[%clk 0:00:54.5]} 39... Rc8 {[%clk 0:00:17.9]} 40. Qa4
{[%clk 0:00:51.7]} 40... Rc7 {[%clk 0:00:18.5]} 41. Rxc7 {[%clk 0:00:48.1]}
41... Qxc7 {[%clk 0:00:19.1]} 42. Qc2 {[%clk 0:00:40.5]} 42... Bxc5 {[%clk
0:00:19.4]} 43. Qxc5 {[%clk 0:00:41.5]} 43... Re7 {[%clk 0:00:20]} 44. Bc2
{[%clk 0:00:37.1]} 44... Qd7 {[%clk 0:00:20.6]} 45. e4 {[%clk 0:00:36.9]} 45...
Nf6 {[%clk 0:00:21.4]} 46. Qe5 {[%clk 0:00:38.2]} 46... Qc7 {[%clk 0:00:21.7]}
47. Qxf6+ {[%clk 0:00:39.2]} 47... Kf8 {[%clk 0:00:22.1]} 48. Qxh6+ {[%clk
0:00:40.2]} 48... Ke8 {[%clk 0:00:22.8]} 49. Ba4 {[%clk 0:00:39.9]} 49... Kd7
{[%clk 0:00:22.5]} 50. Rc3 {[%clk 0:00:41.1]} 1-0

[Event "*** Titled Tuesday 3|2 Blitz"]
[Site "Chess.com"]
[Date "2016.05.03"]
[Round "5"]
[White "Mornar1951"]
[Black "GMG"]
[Result "1-0"]
[WhiteElo "2505"]
[BlackElo "2425"]
[TimeControl "180+2"]
[EndTime "18:04:00 PDT"]
[Termination "Mornar1951 won by resignation"]

1. d4 {[%clk 0:03:01.9]} 1... d5 {[%clk 0:03:00.5]} 2. c4 {[%clk 0:03:02.9]}
2... e6 {[%clk 0:03:02.1]} 3. Nf3 {[%clk 0:03:04.1]} 3... c6 {[%clk 0:03:01]} 4.
Nbd2 {[%clk 0:03:04]} 4... f5 {[%clk 0:02:54.1]} 5. Ne5 {[%clk 0:03:04.1]} 5...
Nf6 {[%clk 0:02:49.1]} 6. Ndf3 {[%clk 0:03:02.6]} 6... Nbd7 {[%clk 0:02:50.1]}
7. a3 {[%clk 0:02:53.7]} 7... Ne4 {[%clk 0:02:48]} 8. Nxd7 {[%clk 0:02:48.6]}
8... Bxd7 {[%clk 0:02:48.4]} 9. e3 {[%clk 0:02:49.2]} 9... Bd6 {[%clk
0:02:48.3]} 10. Be2 {[%clk 0:02:50.2]} 10... Qf6 {[%clk 0:02:49.2]} 11. Qc2
{[%clk 0:02:45.3]} 11... g5 {[%clk 0:02:48]} 12. b4 {[%clk 0:02:44.3]} 12... O-O
{[%clk 0:02:36.9]} 13. Bb2 {[%clk 0:02:43.2]} 13... f4 {[%clk 0:02:38.2]} 14.
Ne5 {[%clk 0:02:41.5]} 14... fxe3 {[%clk 0:02:11.2]} 15. f3 {[%clk 0:02:37.7]}
15... Bxe5 {[%clk 0:01:56.4]} 16. dxe5 {[%clk 0:02:38.8]} 16... Qf4 {[%clk
0:01:57]} 17. g3 {[%clk 0:02:25.9]} 17... Qf5 {[%clk 0:01:50.8]} 18. fxe4 {[%clk
0:02:05.9]} 18... Qf2+ {[%clk 0:01:52.3]} 19. Kd1 {[%clk 0:02:07.1]} 19... Qg2
{[%clk 0:01:52.3]} 20. Re1 {[%clk 0:02:04.4]} 20... c5 {[%clk 0:01:42.7]} 21.
exd5 {[%clk 0:01:59]} 21... exd5 {[%clk 0:01:41.2]} 22. bxc5 {[%clk 0:01:52.4]}
22... d4 {[%clk 0:00:50.5]} 23. Bxd4 {[%clk 0:01:48.8]} 23... Rad8 {[%clk
0:00:44.9]} 24. Kc1 {[%clk 0:01:42.1]} 24... Bf5 {[%clk 0:00:25.8]} 25. Qc3
{[%clk 0:01:39.3]} 25... Qe4 {[%clk 0:00:27.3]} 26. Bxe3 {[%clk 0:01:35.1]}
26... Rfe8 {[%clk 0:00:17.8]} 27. Kb2 {[%clk 0:01:26.5]} 27... Rxe5 {[%clk
0:00:17.5]} 28. Bd2 {[%clk 0:01:15.1]} 28... Qxe2 {[%clk 0:00:08.2]} 29. Rxe2
{[%clk 0:01:15.1]} 29... Rxe2 {[%clk 0:00:10.1]} 30. Rd1 {[%clk 0:01:14.2]}
30... Bg4 {[%clk 0:00:11.3]} 31. Qf6 {[%clk 0:01:01.4]} 31... Rexd2+ {[%clk
0:00:11.3]} 32. Rxd2 {[%clk 0:01:02.9]} 32... Rxd2+ {[%clk 0:00:12.9]} 33. Kc3
{[%clk 0:01:03.4]} 33... Rd7 {[%clk 0:00:13]} 34. Qxg5+ {[%clk 0:01:03.1]} 34...
Rg7 {[%clk 0:00:14.6]} 35. Qd8+ {[%clk 0:01:03.9]} 35... Kf7 {[%clk 0:00:15.8]}
36. Qc7+ {[%clk 0:00:59.4]} 36... Kg6 {[%clk 0:00:15.9]} 37. Qd6+ {[%clk
0:00:58.7]} 37... Kh5 {[%clk 0:00:15.8]} 38. Qe5+ {[%clk 0:00:57.9]} 38... Kg6
{[%clk 0:00:16]} 39. Qe4+ {[%clk 0:00:54.5]} 39... Bf5 {[%clk 0:00:16.5]} 40.
Qe3 {[%clk 0:00:53.6]} 40... Bd7 {[%clk 0:00:16.1]} 41. Qe4+ {[%clk 0:00:52.2]}
41... Bf5 {[%clk 0:00:14.5]} 42. Qe5 {[%clk 0:00:53]} 42... Rd7 {[%clk
0:00:11.3]} 43. Qe8+ {[%clk 0:00:46.4]} 43... Kg7 {[%clk 0:00:11.6]} 44. Qe5+
{[%clk 0:00:45.8]} 44... Kg6 {[%clk 0:00:12.7]} 45. h4 {[%clk 0:00:43.9]} 45...
h5 {[%clk 0:00:13.8]} 46. Qe8+ {[%clk 0:00:43.6]} 46... Kf6 {[%clk 0:00:13.3]}
47. Qxh5 {[%clk 0:00:42]} 47... Rd3+ {[%clk 0:00:14.3]} 48. Kb4 {[%clk
0:00:42.3]} 48... Rxg3 {[%clk 0:00:14.1]} 49. Qh8+ {[%clk 0:00:42.2]} 49... Ke6
{[%clk 0:00:13]} 50. Qc8+ {[%clk 0:00:40.4]} 50... Kf6 {[%clk 0:00:14.3]} 51.
Qd8+ {[%clk 0:00:40.2]} 51... Ke6 {[%clk 0:00:12.9]} 52. Qd6+ {[%clk 0:00:40.7]}
1-0